Cogmind - Beta 14 @@@ ROGUE MODE // 2024.09.12 @ 18:54:06 Player: human Result: Destroyed by G-34 Mercenary with Small Laser Performance ------------- Evolutions (0) 0 Regions Visited (1) 200 Robots Destroyed (3) 15 Value Destroyed (128) 128 Prototype IDs (0) 0 Alien Tech Used (0) 0 Bonus (0) 0 TOTAL SCORE: 343 Bonus ------- None Cogmind --------- Core Integrity 0/250 Matter 255/300 Energy 248/250 System Corruption 0% Temperature Cool (32) Movement Rolling (95) Ox1 Location -10/Materials Parts ------- > --- POWER (1) -------- Ion Engine > --- PROPULSION (2) --- Wheel > --- UTILITY (2) ------ Small Storage Unit Structural Scanner > --- WEAPON (2) ------- Small Laser Light Assault Rifle > --- INVENTORY (8) ---- Compact Wheel Huge Storage Unit Sensor Array Hammer Peak State ------------ > --- POWER ------------ Light Ion Engine > --- PROPULSION ------- Compact Wheel Compact Wheel > --- UTILITY ---------- Small Storage Unit Sensor Array > --- WEAPON ----------- EM Pulse Gun Medium Laser > --- INVENTORY -------- Ion Engine Light Assault Rifle [Rating: 7] Favorites ----------- Power Light Ion Engine Engine Light Ion Engine Propulsion Wheel Wheel Wheel Utility Small Storage Unit Device Structural Scanner Storage Small Storage Unit Weapon Medium Laser Energy Gun Medium Laser Ballistic Gun Light Assault Rifle Impact Weapon Hammer Build | -11 -10 ------- Run | Yrd Mat Slots Evolved . | . . Power . | . . Propulsion . | . . Utility . | . . Weapon . | . . Parts Attached 20 | 6 14 Power 2 | 1 1 Engine 2 | 1 1 Core . | . . Reactor . | . . Propulsion 7 | 2 5 Treads . | . . Leg . | . . Wheel 7 | 2 5 Hover . | . . Flight . | . . Utility 5 | 1 4 Device 4 | . 4 Storage 1 | 1 . Processor . | . . Hackware . | . . Protection . | . . Artifact . | . . Weapon 6 | 2 4 Energy Gun 4 | 2 2 Energy Cannon . | . . Ballistic Gun 1 | . 1 Ballistic Cannon . | . . Launcher . | . . Special Weapon . | . . Impact Weapon 1 | . 1 Slashing Weapon . | . . Piercing Weapon . | . . Special Melee Weapon . | . . Unidentified Prototypes . | . . Parts Lost 7 | . 7 Power 1 | . 1 Propulsion 4 | . 4 Utility . | . . Weapon 2 | . 2 Highest Loss Streak 5 | . 5 To Critical Strikes . | . . Average Slot Usage (%) 92 | . 92 Engine 12 | . 12 Wheel 25 | . 25 Device 13 | . 13 Storage 14 | . 14 Energy Gun 16 | . 16 Impact Weapon 8 | . 8 Peak Build Rating 7 | 6 7 Average Rating 6 | 3 6 On Entrance 3 | . 6 Naked Turns . | . . Heaviest Build 15 | 12 15 Greatest Support 32 | 32 32 Greatest Overweight (x) . | . . Average Overweight (x) . | . . Largest Inventory Capacity 8 | 8 8 Average Capacity 7 | 7 8 Most Carried 8 | 5 8 Average Carried 5 | 2 6 Final Capacity 8 | 8 8 Final Carried 4 | 2 4 Class Distribution -------------------- 100% | Mutant Dominant Class ---------------- Mutant | -10/Materials Resources | -11 -10 ----------- Run | Yrd Mat Matter Collected 323 | 192 131 Remotely . | . . Salvage Created 131 | . 131 Parts 3 | . 3 Haulers Intercepted . | . . Recyclers Shooed . | . . Parts Field Recycled . | . . Retrieved Matter . | . . Parts Self-Destructed . | . . Prevented . | . . Kills | -11 -10 ------- Run | Yrd Mat Combat Hostiles Destroyed 3 | . 3 Melee 1 | . 1 Guns 1 | . 1 Classes Destroyed 1 | . 1 Grunt 3 | . 3 Best Kill Streak 2 | . 2 Combat Bots Only 2 | . 2 Max Kills in Single Turn 1 | . 1 Gunslinging . | . . Exploded . | . . Melee 1 | . 1 Uniques/NPCs Destroyed . | . . Combat | -11 -10 -------- Run | Yrd Mat Hostile Shots Fired 75 | . 75 Missed 14 | . 14 Damage Taken 756 | . 756 Core 251 | . 251 Absorbed by Shields . | . . Core Remaining (%) 100 | 100 . Volleys Fired 7 | . 7 Largest 2 | . 2 Hottest 90 | . 90 Shots Fired 13 | . 13 Gun 13 | . 13 Cannon . | . . Launcher . | . . Special . | . . Kinetic 3 | . 3 Thermal 5 | . 5 Explosive . | . . Electromagnetic 5 | . 5 Robot Hit Streak 4 | . 4 Robot Miss Streak 1 | . 1 Penetration Max . | . . Secondary Targets 1 | . 1 Max Gunslinging Chain 1 | . 1 Shots Hit Robots 20 | . 20 Core Hits 6 | . 6 Critical Kills . | . . Critical Parts Destroyed 1 | . 1 Critical Strikes 1 | . 1 Smash 1 | . 1 Melee Attacks 19 | . 19 Impact 19 | . 19 Slashing . | . . Piercing . | . . Sneak Attacks . | . . Combat Hostiles . | . . Follow-up Attacks . | . . Damage Inflicted 363 | . 363 Guns 110 | . 110 Cannons . | . . Explosions . | . . Melee 253 | . 253 Ramming . | . . Kinetic 19 | . 19 Thermal 37 | . 37 Explosive . | . . Electromagnetic 54 | . 54 Impact 253 | . 253 Slashing . | . . Piercing . | . . Highest Corruption . | . . Average Corruption . | . . Corruption Purged . | . . Corruption Blocked . | . . Overload Shots . | . . Overflow Damage 25 | . 25 Projectiles . | . . Explosions . | . . Melee 25 | . 25 Knockbacks . | . . Impact . | . . Kinetic . | . . Secondary . | . . Self-Inflicted Damage . | . . Shots . | . . Rammed . | . . Targets Rammed . | . . Kicked . | . . Crushed . | . . Highest Temperature 183 | . 183 Average Temperature 73 | . 73 Received Heat Transfer 459 | . 459 Siege Activations . | . . Robots Corrupted 1 | . 1 Combat Hostiles 1 | . 1 Parts Fried 1 | . 1 Impact Corruptions 2 | . 2 Robots Melted . | . . Combat Hostiles . | . . Parts Melted . | . . Heat Transferred 111 | . 111 Parts Sabotaged . | . . Parts Stolen . | . . Parts Stripped . | . . Power Chain Reactions . | . . Alert | -11 -10 ------- Run | Yrd Mat Peak Influence 82 | . 82 Initial . | . . Average 38 | . 46 Maximum Alert Level . | . . Low Security (%) 100 | 100 100 Level 1 . | . . Level 2 . | . . Level 3 . | . . Level 4 . | . . Level 5 . | . . High Security . | . . Max Security . | . . Squads Dispatched 2 | . 2 Investigation 2 | . 2 Extermination . | . . Reinforcement . | . . Assault . | . . Garrison . | . . Intercept . | . . Searches Triggered . | . . Construction Impeded . | . . Haulers Reinforced . | . . Active Scanning Responses . | . . Cargo Convoy Interrupts . | . . Stealth | -11 -10 --------- Run | Yrd Mat Distress Signals . | . . Communications Jammed . | . . Distress Signals . | . . Times Spotted 9 | . 9 Peak Tracking Total 4 | . 4 Tactical Retreats 2 | . 2 Traps | -11 -10 ------- Run | Yrd Mat Traps Triggered 1 | . 1 Indirectly . | . . Trap Hack Attempts . | . . Triggered . | . . Disarmed . | . . Reprogrammed . | . . Reused . | . . Traps Extracted . | . . Installed . | . . Triggered . | . . Machines | -11 -10 ---------- Run | Yrd Mat Machines Disabled . | . . Max in Single Turn . | . . Machines Repaired . | . . Machines Dismantled . | . . Machines Sabotaged . | . . Overloaded Fab Kills . | . . Hacking | -11 -10 --------- Run | Yrd Mat Machines Accessed 3 | . 3 Terminals 3 | . 3 Fabricators . | . . Repair Stations . | . . Recycling Units . | . . Scanalyzers . | . . Garrison Access . | . . Total Hacks 8 | . 8 Successful 2 | . 2 Failed 6 | . 6 Catastrophic 1 | . 1 Database Lockouts . | . . Manual 7 | . 7 Terminals 8 | . 8 Fabricators . | . . Repair Stations . | . . Recycling Units . | . . Scanalyzers . | . . Garrison Access . | . . Terminal Hacks 1 | . 1 Unreport Threat 1 | . 1 Fabricator Hacks . | . . Repair Station Hacks . | . . Recycling Unit Hacks . | . . Scanalyzer . | . . Garrison Access Hacks . | . . Unauthorized Hacks 1 | . 1 Terminals 1 | . 1 Operators 1 | . 1 Fabricators . | . . Repair Stations . | . . Recycling Units . | . . Scanalyzers . | . . Garrison Access . | . . Data Cores Recovered . | . . Used . | . . Hacking Detections 2 | . 2 Full Trace Events 1 | . 1 Feedback Events . | . . Feedback Blocked . | . . Robot Schematics Acquired . | . . Robots Built . | . . Authchips . | . . Time . | . . Total Robot Build Rating . | . . Part Schematics Acquired . | . . Parts Built . | . . Authchips . | . . Time . | . . Total Part Build Rating . | . . Parts Repaired . | . . Time . | . . Parts Recycled . | . . Recycled Matter . | . . Retrieved Matter . | . . Retrieved Components . | . . Parts Scanalyzed . | . . Part Schematics Acquired . | . . Parts Damaged . | . . Bothacking | -11 -10 ------------ Run | Yrd Mat Used RIF Installer . | . . Robots Hacked . | . . Non-combat . | . . Combat . | . . Robot Hacks Applied . | . . Relay Couplers Released . | . . Fabnet Peak Effective % . | . . Robots Rewired . | . . Allies Hacked . | . . Hacks Repelled . | . . Allies | -11 -10 -------- Run | Yrd Mat Total Allies . | . . Largest Group . | . . Highest-Rated Group . | . . Highest-Rated Ally . | . . Total Orders . | . . Ally Attacks . | . . Total Damage . | . . Kills . | . . Allies Corrupted . | . . Allies Melted . | . . Intel | -11 -10 ------- Run | Yrd Mat Robot Analysis Total . | . . Derelict Logs Recovered . | . . Drone Launches . | . . Drone Recoveries . | . . Exploration | -11 -10 ------------- Run | Yrd Mat Turns Passed 325 | 58 267 Spaces Moved 246 | 52 194 Core 14 | 14 . Treads . | . . Legs . | . . Wheels 232 | 38 194 Hover . | . . Flight . | . . Fastest Speed 50 | 50 80 Average Speed 86 | 86 86 Slowest Speed 100 | 100 100 Overloaded Moves . | . . Propulsion Burnouts . | . . Robots Hopped . | . . Cave-ins Triggered . | . . Exploration Rate (%) 22 | 3 42 Regions Visited 1 Branch Regions . Pre-discovered Areas . | . . Known Exits Taken . | . . Unknown Exits Taken 1 | 1 . Scrap Searched . | . . Spaces Dug 1 | . 1 Terrain Destroyed 1 | . 1 Melee 1 | . 1 Projectile . | . . AOE . | . . Terrain Rammed . | . . Walls Destroyed . | . . Machines Disabled . | . . Actions | -11 -10 --------- Run | Yrd Mat Total 310 | 65 245 Wait 2 | . 2 Move 245 | 51 194 Hop . | . . Pick Up 17 | 8 9 Fast Attach . | . . Attach 13 | 6 7 Detach . | . . Swap 7 | . 7 Drop . | . . Fire 7 | . 7 Melee 19 | . 19 Ram . | . . Kick . | . . Crush . | . . Escape Stasis . | . . Rewire . | . . Trap . | . . Miscellaneous . | . . Route ------- -11/Scrapyard -10/Materials (discovered 1 exit: [*Mat]) History --------- Turn | Location | Event 10 | -11/Scrapyard | Discovered new exit (range 16) 59 | -11/Scrapyard | Entered Materials 164 | -10/Materials | Discovered new exit (range 11) 241 | -10/Materials | Core integrity fell below 50% 261 | -10/Materials | Core integrity fell below 20% 287 | -10/Materials | Lost 5 parts (1p3n1w) 326 | -10/Materials | Destroyed by G-34 Mercenary with Small Laser Last Messages --------------- 00250_ Lgt. Ion Engine destroyed. 00254_ Critical hit (Burn: +37). 00256_ Wheel destroyed. 00260_ G-47 Trooper IFF system glitched. 00261_ Destroyed Imp. Heat Sink. 00261_ G-47 Trooper system corrupted by crushing effect. 00262_ G-47 Trooper system terminally corrupted. 00262_ Aluminum Leg fried. 00272_ G-34 Mercenary destroyed. 00278_ Acquired 39 matter. 00279_ Acquired 32 matter. 00297_ Triggered Alarm Trap. 00297_ An alarm sounds. 00297_ ALERT: Alarm triggered, dispatching investigation squad. 00313_ Acquired Huge Storage Unit. 00316_ EM Pulse Gun destroyed. 00322_ Com. Wheel destroyed. 00322_ Acquired Sml. Laser. Map ----- +----------------------------------------------------+ | | | | | | | | | | | | | | | | | | | | | | | | | | | | | | | | | | | | | | | ?????????????????????????????????################? | | ?????????????????????????????????## ##? | | ?????????????????????????????????## """ """ ##? | | ??????????????????????########???## """"""""" ##? | | ??????????????????????############# """"" "????? | | ??????????????????????## [! ####### ???? | | ??????????????????????## @! ## ######+#####???? | | ??????????????????????## ! ## = ##???? | | ??????????????????????## ## ##???? | | ??????????????????????## ## ##### #####???? | | ??????????????????????## ########### #####???? | | ?????????????????????? # ########?## ######### | | ?????????????????????? # ##??????### ## | | ??????????????????## ? # g ########### ## """ "" | | ??????????????????## ###/########### # """ "" | | ??????????????????## # """ "" | | ??????????????????## + """ "" | | ??????????????????## ! # | | ??????????????????##################### ## | | ??????????????????##################### ## | | ???????????????????????????############ ###+##### | | ??????????????????????? ##?? | | ???????????????????????# ##?? | | ????????????????????????# #### ########+##### ##?? | | ???????????????????????##+####+##### # ##?? | | ????????????????????##### ### """ # #??? | | ????????????????????##### """ ### """ # #??? | | ???????????????????? / """ =### """ # #??? | | ???????????????????????## """ ### # #??? | | ???????????????????????## [ ### "" # #??? | | ???????????????????????## """ + + "Y ! # #??? | +----------------------------------------------------+ Best States ------------- Heat Dissipation 25 Energy Generation 10 Energy Capacity 250 Matter Stores 282 Matter Capacity 300 Sight Range 16 Robot Scan Range 14 Terrain Scan Density 10 Evasion (%) 44 Item Schematics ----------------- None Robot Schematics ------------------ None Fabricated ------------ Nothing Alien Tech Used ----------------- None Achievements -------------- None Challenges ------------ None Game ------ Seed AntimatterMachineVibroblade Manual? 0 Play Time 00:10:42 Cumulative 36.2 hours Start 2024.09.12 @ 18:44:48 End 2024.09.12 @ 18:54:06 Sessions 1 Manual Loads 0 Difficulty Rogue Special Mode None Game No. 24 Rogue 24 Adventurer 0 Explorer 0 Win Type - Total 0 Types 0/0/0/0/0/0/0/0/0 Lore% 8 Gallery% 25 Achievement% 23 Wizard Run 0 Options --------- Layout 1 ASCII 0 Keyboard 0 Movement Mouse Keybinds 0 Fullscreen 1 Font 24/Smallcaps Map View 50x35 Zoom Use 0% Tactical HUD 1 Map Filters NONE Filters NONE Steam 1 RUN: 5c67d433-ad10-47bd-9de0-6950cda1eae9